{"text_format":"1","workbook":"xlsx","n_sheets":6,"sheets":["Notice Explicative","Partie administrative","Investissement","Soutien de programme","Dépenses de Personnels","Global"],"not_rendered":{"charts":0,"images":1,"macros":0,"external_links":0,"defined_names":14,"comments":0,"pivot_tables":0},"unopened":[],"bounds":{"document_bytes":16777216,"sheet_cells":100000,"rows_first":2000,"rows_last":500,"rows_between":2000,"halvings":0,"cell_chars":16384,"cell_head_chars":4096},"cells_cut":0,"cells_raw":0,"read":"whole","date_system":"1900"}

{"sheet":"Notice Explicative","index":0,"n_rows":35,"n_cols":2,"rows_kept":35,"cut":false,"hidden":false,"merged":[[1,0,1,6],[3,0,3,6],[12,1,12,6],[10,1,10,6],[7,1,7,6],[34,0,34,6],[19,0,19,6],[21,0,21,6],[23,0,23,6],[9,1,9,6],[17,0,17,6]]}
[]
["DOSSIER FINANCIER"]
[]
["REMARQUES GENERALES "]
[]
["Le dossier financier est constitué :"]
[]
["1°)","de feuilles à renseigner par bénéficiaire et par poste de dépenses (investissements, soutien de programme, dépenses de personnel)."]
[]
[null,"Pour chaque poste de dépense, le lien avec le projet et le mode de calcul devront être explicités."]
[null,"Il devra être précisé, pour l'ensemble des postes de dépenses , ceux pour lesquels une subvention est sollicitée et ceux pour lesquels un co-financement est envisagé et/ou acquis (y compris les fonds propres disponibles et leurs origines). Le(s) co-financeur(s) devra(devront) être bien identifiés. "]
[]
["2°)","d'un tableau récapitulatif (feuillet \"global\") reprenant l'ensemble des postes de dépenses par nature pour le projet. "]
[]
[]
["Nous attirons l'attention sur les points suivants :"]
[]
["-       toutes les dépenses devront pouvoir être certifiées acquittées par l'établissement gestionnaire,"]
[]
["-       l'annualisation des budgets nécessite de bien définir par année le montant qui sera acquitté au titre de la même année. A ce titre, les montants précisés seront ceux qui appelleront les crédits de paiement pour la Région,"]
[]
["A noter que pour les équipes ayant des engagements en cours avec la Région sur d’autres opérations s'inscrivant dans la logique du projet demandé, le versement du premier acompte nécessitera le solde de l'opération antérieure."]
[]
["L'ensemble du dossier doit être transmis par le coordonnateur."]
[]
[]
[]
[]
[]
[]
[]
[]
[]
[]
["Préciser qu’il y aura un seul bénéficiaire de la subvention, qui reversera aux autres partenaires si besoin"]

{"sheet":"Partie administrative","index":1,"n_rows":29,"n_cols":27,"rows_kept":29,"cut":false,"hidden":false,"merged":[[26,1,26,2],[26,3,26,4],[26,5,26,6],[11,0,11,8],[21,1,22,4],[21,5,22,7],[15,1,15,7],[27,1,27,3],[27,4,27,7],[54,2,55,8],[17,1,17,2],[17,3,17,7],[18,1,18,2],[18,3,18,7],[19,1,19,2],[19,3,19,7],[20,1,20,2],[20,3,20,7],[25,1,25,2],[23,1,23,7],[24,1,24,7],[28,1,28,6],[25,3,25,7]]}
[]
["Région Hauts-de-France"]
["Direction de la Recherche, de l'Enseignement Supérieur "]
["et des Formations Sanitaires et Sociales "]
[]
[]
[]
[]
[]
[]
[]
["DISPOSITIF STaRS\nACCUEIL DE JEUNES CHERCHEURS D’AVENIR "]
[]
[null,null,null,null,"DOSSIER DE DEMANDE DE SUBVENTION - PARTIE FINANCIERE",null,null,null,null,null,null,null,null,null,null,null,null,null,null,null,null,null,null,null,null,null,"HT"]
[]
[null,"RAPPEL : POUR CE DISPOSITIF LA SUBVENTION REGIONALE NE COUVRIRA QUE TOUT OU PARTIE DU COÛT SALARIAL DE LA PERSONNE ACCUEILLIE"]
[null,null,null,null,null,null,null,null,null,null,null,null,null,null,null,null,null,null,null,null,null,null,null,null,null,null,"TTC"]
[null,"TITRE DU PROJET : "]
[null,"NOM ET PRENOM DU CANDIDAT :"]
[null,"LABORATOIRE D'ACCUEIL :"]
[null,"ETABLISSEMENT GESTIONNAIRE : "]
[null,"\nNOM et Prénom du représentant légal de l’établissement gestionnaire\n",null,null,null,"\nSignature du représentant légal"]
[]
[null,"Personne en charge du suivi administratif et financier du projet :"]
[]
[null,"Coordonnées :"]
[null,"COUT TOTAL ",null,"€",null,"AIDE DEMANDEE",null,"€"]
[null,"Date de début et de fin d'exécution ",null,null,"du xx/xx/20xx au xx/xx/20xx"]
[null,"Les dépenses sont présentées en HT ou TTC ?"]

{"sheet":"Investissement","index":2,"n_rows":29,"n_cols":9,"rows_kept":29,"cut":false,"hidden":false,"merged":[[14,2,14,4],[15,6,15,8],[39,2,40,8],[6,0,6,8],[11,2,11,4]]}
[]
["Région Hauts-de-France"]
["Direction de la Recherche, de l'Enseignement Supérieur "]
["et des Formations Sanitaires et Sociales "]
[]
[]
["Attention : les projets doivent se réaliser sur maximum deux années effectives mais la programmation s’entend en année civile – les années 1 à 3 sont à renseigner au prorata du nombre de mois sur lequel se déroule le projet."]
[]
["INVESTISSEMENT"]
[]
[]
["DEPENSES  DIRECTES  D'INVESTISSEMENT  EN  LIEN  AVEC  L'ACCUEIL DE :",null,null,null,null,"champ à remplir par le demandeur"]
[]
[]
[null,null,"Ventilation du montant par année"]
[null,null,"Année 1","Année 2","Année 3",null,"Recettes"]
["Intitulé de la dépense","Justification *","du xx/xx20xx au xx/xx/20xx","du xx/xx20xx au xx/xx/20xx","du xx/xx20xx au xx/xx/20xx","Coût Total","Fonds propres","Autres :","Précisez"]
[null,null,null,null,null,{"$f":"C18+D18+E18","v":0}]
[null,null,null,null,null,{"$f":"C19+D19+E19","v":0}]
[null,null,null,null,null,{"$f":"C20+D20+E20","v":0}]
[null,null,null,null,null,0]
[null,null,null,null,null,0]
[null,null,null,null,null,0]
[null,null,null,null,null,0]
[null,null,null,null,null,0]
[null,null,null,null,null,0]
[null,null,null,null,null,0]
[null,"TOTAL",{"$f":"SUM(C18:C27)","v":0},null,0,{"$f":"SUM(F18:F27)","v":0},0,0]
["* Précisez par exemple : le lien avec le projet, le nombre de mois d'utilisation sur la durée du projet, la date d'acquisition, …"]

{"sheet":"Soutien de programme","index":3,"n_rows":36,"n_cols":9,"rows_kept":36,"cut":false,"hidden":false,"merged":[[6,0,6,8],[11,4,11,5],[14,2,14,4],[15,6,15,8],[44,2,45,8],[8,0,8,1],[13,0,13,1]]}
[]
["Région Hauts-de-France"]
["Direction de la Recherche, de l'Enseignement Supérieur "]
["et des Formations Sanitaires et Sociales "]
[]
[]
["Attention : les projets doivent se réaliser sur maximum deux années effectives mais la programmation s’entend en année civile – les années 1 à 3 sont à renseigner au prorata du nombre de mois sur lequel se déroule le projet."]
[]
["SOUTIEN DE PROGRAMME"]
[]
[]
["DEPENSES  DIRECTES  DE  SOUTIEN  DE  PROGRAMME  EN  LIEN  AVEC  L'ACCUEIL DE  :",null,null,null,null,null,"champ à remplir par le demandeur"]
[]
["Les dépenses doivent être ventilées en fonction de leur nature (frais de mission, de déplacement, petit équipement, consommables, petits matériels, études, analyses…)."]
[null,null,"Ventilation du montant par année"]
[null,null,"Année 1","Année 2","Année 3",null,"Recettes"]
["Intitulé de la dépense","Justification *","du xx/xx20xx au xx/xx/20xx","du xx/xx20xx au xx/xx/20xx","du xx/xx20xx au xx/xx/20xx","Coût Total","Fonds propres","Autres :","Précisez"]
[null,null,null,null,null,{"$f":"C18+D18+E18","v":0}]
[null,null,null,null,null,{"$f":"C19+D19+E19","v":0}]
[null,null,null,null,null,{"$f":"C20+D20+E20","v":0}]
[null,null,null,null,null,0]
[null,null,null,null,null,0]
[null,null,null,null,null,0]
[null,null,null,null,null,0]
[null,null,null,null,null,0]
[null,null,null,null,null,0]
[null,null,null,null,null,0]
[null,null,null,null,null,0]
[null,null,null,null,null,0]
[null,null,null,null,null,0]
[null,null,null,null,null,0]
[null,null,null,null,null,0]
[null,"TOTAL",{"$f":"SUM(C18:C32)","v":0},null,{"$f":"SUM(E18:E32)","v":0},0,{"$f":"SUM(G18:G32)","v":0},{"$f":"SUM(H18:H32)","v":0}]
["* Précisez par exemple : le lien avec le projet, la clé de répartition utilisée, le nombre d'unité nécessaire, …"]
["                                    pour les frais de missions : précisez le prix d'un trajet, d'une nuité, le nombre/personne, …"]
["                                   pour les études et analyses, les noms et qualités des prestataires doivent être précisés"]

{"sheet":"Dépenses de Personnels","index":4,"n_rows":29,"n_cols":10,"rows_kept":29,"cut":false,"hidden":false,"merged":[[14,2,14,4],[15,6,15,9],[38,2,39,9],[6,0,6,8],[11,2,11,4],[13,0,13,5]]}
[]
["Région Hauts-de-France"]
["Direction de la Recherche, de l'Enseignement Supérieur "]
["et des Formations Sanitaires et Sociales "]
[]
[]
["Attention : les projets doivent se réaliser sur maximum une année effective mais la programmation s’entend en année civile – les années 1 à 3 sont à renseigner au prorata du nombre de mois sur lequel se déroule le projet."]
[]
["PERSONNELS"]
[]
[]
["DEPENSES  DIRECTES  DE   PERSONNELS  EN  LIEN  AVEC  L'ACCUEIL DE :"]
[]
["L’intervention de la Région concerne uniquement le salaire du (de la) jeune chercheur(se) et doit être calculée sur la base d’une rémunération brute chargée de maximum 4 000 €/mois. Dans le cas où la rémunération serait supérieure, la différence devra être couverte par l’établissement d’accueil. \nLes contrats CDI et personnels statutaires sont éligibles au titre de la contre partie justifiée sur la partie « fonds propres »."]
[null,null,"Ventilation du montant par année"]
[null,null,"Année 1","Année 2","Année 3",null,"Recettes"]
["Intitulé de la dépense","Justification *","du xx/xx20xx au xx/xx/20xx","du xx/xx20xx au xx/xx/20xx","du xx/xx20xx au xx/xx/20xx","Coût Total","Région","Fonds propres","Autres :","Précisez"]
[null,null,null,null,null,{"$f":"C18+D18+E18","v":0}]
[null,null,null,null,null,{"$f":"C19+D19+E19","v":0}]
[null,null,null,null,null,{"$f":"C20+D20+E20","v":0}]
[null,null,null,null,null,0]
[null,null,null,null,null,0]
[null,null,null,null,null,0]
[null,null,null,null,null,0]
[null,null,null,null,null,0]
[null,null,null,null,null,0]
[null,null,null,null,null,0]
[null,"TOTAL",{"$f":"SUM(C18:C27)","v":0},null,0,{"$f":"SUM(F18:F27)","v":0},0,0,0]
["* Précisez par exemple : le taux d'emploi sur le projet, le type de contrat CDD/CDI/Titulaire, le nombre de mois travaillé, …"]

{"sheet":"Global","index":5,"n_rows":56,"n_cols":5,"rows_kept":56,"cut":false,"hidden":false,"merged":[[8,3,8,4],[66,1,67,4],[13,3,13,4],[53,0,55,0],[53,1,55,1],[53,2,55,2]]}
[]
["Région Hauts-de-France"]
["Direction de la Recherche, de l'Enseignement Supérieur "]
["et des Formations Sanitaires et Sociales "]
[]
[]
[]
[]
["PLAN DE FINANCEMENT PREVISIONNEL POUR L'ACCUEIL DE :"]
[]
["Tableau récapitulatif des dépenses et des ressources prévisionnelles *"]
["* Les montants des dépenses et des ressources reprises dans ce tableau récapitulatif sont renseignés automatiquement"]
[]
["Nature et intitulé des postes de dépenses","Coût Total","Dépenses subventionnables","Recettes"]
["Investissement",{"$f":"Investissement!F28","v":0},{"$f":"SUM(C16:C25)","v":0},{"$f":"Investissement!G17","v":"Fonds propres"},{"$f":"Investissement!G28","v":0}]
[{"$f":"Investissement!A18","v":0},{"$f":"Investissement!F18","v":0},null,{"$f":"Investissement!H17","v":"Autres :"},{"$f":"Investissement!H28","v":0}]
[{"$f":"Investissement!A19","v":0},{"$f":"Investissement!F19","v":0}]
[{"$f":"Investissement!A20","v":0},{"$f":"Investissement!F20","v":0}]
[{"$f":"Investissement!A21","v":0},{"$f":"Investissement!F21","v":0}]
[{"$f":"Investissement!A22","v":0},{"$f":"Investissement!F22","v":0}]
[{"$f":"Investissement!A23","v":0},{"$f":"Investissement!F23","v":0}]
[{"$f":"Investissement!A24","v":0},{"$f":"Investissement!F24","v":0}]
[{"$f":"Investissement!A25","v":0},{"$f":"Investissement!F25","v":0}]
[{"$f":"Investissement!A26","v":0},{"$f":"Investissement!F26","v":0}]
[{"$f":"Investissement!A27","v":0},{"$f":"Investissement!F27","v":0}]
["Fonctionnement",{"$f":"B27+B43","v":0},{"$f":"C27+C43","v":0},{"$f":"'Soutien de programme'!G17","v":"Fonds propres"},{"$f":"'Soutien de programme'!G33","v":0}]
["Soutien de programme",{"$f":"'Soutien de programme'!F33","v":0},{"$f":"SUM(C28:C42)","v":0},{"$f":"'Soutien de programme'!H17","v":"Autres :"},{"$f":"'Soutien de programme'!H33","v":0}]
[{"$f":"'Soutien de programme'!A18","v":0},{"$f":"'Soutien de programme'!F18","v":0}]
[{"$f":"'Soutien de programme'!A19","v":0},{"$f":"'Soutien de programme'!F19","v":0}]
[{"$f":"'Soutien de programme'!A20","v":0},{"$f":"'Soutien de programme'!F20","v":0}]
[{"$f":"'Soutien de programme'!A21","v":0},{"$f":"'Soutien de programme'!F21","v":0}]
[{"$f":"'Soutien de programme'!A22","v":0},{"$f":"'Soutien de programme'!F22","v":0}]
[{"$f":"'Soutien de programme'!A23","v":0},{"$f":"'Soutien de programme'!F23","v":0}]
[{"$f":"'Soutien de programme'!A24","v":0},{"$f":"'Soutien de programme'!F24","v":0}]
[{"$f":"'Soutien de programme'!A25","v":0},{"$f":"'Soutien de programme'!F25","v":0}]
[{"$f":"'Soutien de programme'!A26","v":0},{"$f":"'Soutien de programme'!F26","v":0}]
[{"$f":"'Soutien de programme'!A27","v":0},{"$f":"'Soutien de programme'!F27","v":0}]
[{"$f":"'Soutien de programme'!A28","v":0},{"$f":"'Soutien de programme'!F28","v":0}]
[{"$f":"'Soutien de programme'!A29","v":0},{"$f":"'Soutien de programme'!F29","v":0}]
[{"$f":"'Soutien de programme'!A30","v":0},{"$f":"'Soutien de programme'!F30","v":0}]
[{"$f":"'Soutien de programme'!A31","v":0},{"$f":"'Soutien de programme'!F31","v":0}]
[{"$f":"'Soutien de programme'!A32","v":0},{"$f":"'Soutien de programme'!F32","v":0}]
["Dépenses de personnels",{"$f":"'Dépenses de Personnels'!F28","v":0},{"$f":"SUM(C44:C53)","v":0},{"$f":"'Dépenses de Personnels'!G17","v":"Région"},{"$f":"'Dépenses de Personnels'!G28","v":0}]
[{"$f":"'Dépenses de Personnels'!A18","v":0},{"$f":"'Dépenses de Personnels'!F18","v":0},null,{"$f":"'Dépenses de Personnels'!H17","v":"Fonds propres"},{"$f":"'Dépenses de Personnels'!H28","v":0}]
[{"$f":"'Dépenses de Personnels'!A19","v":0},{"$f":"'Dépenses de Personnels'!F19","v":0},null,{"$f":"'Dépenses de Personnels'!I17","v":"Autres :"},{"$f":"'Dépenses de Personnels'!I28","v":0}]
[{"$f":"'Dépenses de Personnels'!A20","v":0},{"$f":"'Dépenses de Personnels'!F20","v":0}]
[{"$f":"'Dépenses de Personnels'!A21","v":0},{"$f":"'Dépenses de Personnels'!F21","v":0}]
[{"$f":"'Dépenses de Personnels'!A22","v":0},{"$f":"'Dépenses de Personnels'!F22","v":0}]
[{"$f":"'Dépenses de Personnels'!A23","v":0},{"$f":"'Dépenses de Personnels'!F23","v":0}]
[{"$f":"'Dépenses de Personnels'!A24","v":0},{"$f":"'Dépenses de Personnels'!F24","v":0}]
[{"$f":"'Dépenses de Personnels'!A25","v":0},{"$f":"'Dépenses de Personnels'!F25","v":0}]
[{"$f":"'Dépenses de Personnels'!A26","v":0},{"$f":"'Dépenses de Personnels'!F26","v":0}]
[{"$f":"'Dépenses de Personnels'!A27","v":0},{"$f":"'Dépenses de Personnels'!F27","v":0}]
["TOTAL",{"$f":"B15+B26","v":0},{"$f":"C15+C26","v":0},{"$f":"D43","v":"Région"},{"$f":"E43","v":0}]
[null,null,null,{"$f":"D26","v":"Fonds propres"},{"$f":"E15+E26+E44","v":0}]
[null,null,null,{"$f":"D27","v":"Autres :"},{"$f":"E16+E27+E45","v":0}]